bitfinex-derivatives/quotes_BTCF0:USTF0_20250429
["timestamp","ask_amount","ask_price","bid_price","bid_amount"]
[1745904164978,0.1908054,94314.0,94313.0,0.1938061]
[1745904165179,0.1908054,94314.0,94313.0,0.1968061]
[1745904165778,0.24386149,94314.0,94313.0,0.1968061]
[1745904172389,0.05305609,94314.0,94313.0,0.1968061]
[1745904172590,0.4084934,94330.0,94322.0,0.1907879]
[1745904172591,0.07247326,94323.0,94322.0,0.1907879]
[1745904172782,0.26325916,94323.0,94322.0,0.1907879]
[1745904173089,0.1907859,94323.0,94322.0,0.2384846]
[1745904173280,0.23541381,94323.0,94322.0,0.2384846]
[1745904173486,0.23541381,94323.0,94322.0,0.1907879]
[1745904174186,0.23541381,94323.0,94322.0,0.1917879]
[1745904175696,0.23541381,94323.0,94322.0,0.2430879]
[1745904175900,0.12301381,94323.0,94322.0,0.2430879]
[1745904177599,0.04462791,94323.0,94322.0,0.2430879]
[1745904177796,0.1907835,94325.0,94324.0,0.1907838]
[1745904177995,0.1907749,94329.0,94328.0,0.1907737]
[1745904178299,0.06588,94330.0,94329.0,0.1037]
[1745904178484,0.11104589,94330.0,94329.0,0.2944737]
[1745904179297,0.04516589,94330.0,94329.0,0.2944737]
[1745904179495,0.190766,94333.0,94332.0,0.1907677]
[1745904180900,0.192766,94333.0,94332.0,0.1907677]
[1745904181093,0.23796306,94333.0,94332.0,0.1907677]
[1745904181401,0.23996306,94333.0,94332.0,0.1907677]
[1745904181701,0.04919706,94333.0,94332.0,0.1907677]
[1745904182291,0.004,94333.0,94332.0,0.1907677]
[1745904183398,0.004,94333.0,94332.0,0.29677569]
[1745904183597,0.0015,94345.0,94344.0,0.1907434]
[1745904184199,0.0015,94345.0,94344.0,0.2911434]
[1745904184404,0.0015,94345.0,94344.0,0.5371394]
[1745904184594,0.0065,94345.0,94344.0,0.5371394]
[1745904184901,0.0065,94345.0,94344.0,0.8979394]
[1745904185102,0.10648903,94349.0,94348.0,0.1907353]
[1745904185404,0.10648903,94349.0,94348.0,0.3307353]
[1745904185604,0.10648903,94349.0,94348.0,0.2967273]
[1745904185802,0.001,94356.0,94355.0,0.1907212]
[1745904186105,0.0978738,94368.0,94362.0,0.190707]
[1745904186300,0.1906998,94366.0,94362.0,0.190707]
[1745904186506,0.1907018,94365.0,94362.0,0.190707]
[1745904186701,0.0502,94368.0,94362.0,0.190707]
[1745904186899,0.2383739,94366.0,94365.0,0.2860299]
[1745904187297,0.1573739,94366.0,94365.0,0.2860299]
[1745904187696,0.1906935,94369.0,94368.0,0.1906929]
[1745904188199,0.02741395,94376.0,94375.0,0.1906807]
[1745904188398,0.02741395,94376.0,94375.0,0.5514807]
[1745904189108,0.21809265,94376.0,94375.0,0.5514807]
[1745904190509,0.22109265,94376.0,94375.0,0.5514807]
[1745904191211,0.07991395,94376.0,94375.0,0.5514807]
[1745904192106,0.03041395,94376.0,94375.0,0.5514807]
[1745904193598,0.04351053,94384.0,94377.0,0.0476688]
[1745904193802,0.0519,94388.0,94383.0,0.4084657]
[1745904194021,0.09656772,94388.0,94387.0,0.1906565]
[1745904195008,0.10056772,94388.0,94387.0,0.1906565]
[1745904195309,0.004,94388.0,94387.0,0.1906565]
[1745904195513,0.004,94388.0,94387.0,0.5514565]
[1745904196614,0.0519,94394.0,94393.0,0.1906444]
[1745904196905,0.2425424,94394.0,94393.0,0.5514444]
[1745904197297,0.1906424,94394.0,94393.0,0.5514444]
[1745904198208,0.1956424,94394.0,94393.0,0.5514444]
[1745904198505,0.005,94394.0,94393.0,0.5514444]
[1745904198706,0.1956424,94394.0,94393.0,0.5514444]
[1745904199702,0.1946424,94394.0,94393.0,0.5514444]
[1745904199902,0.1916424,94394.0,94393.0,0.5514444]
[1745904200098,0.001,94394.0,94393.0,0.5514444]
[1745904200500,0.1916424,94394.0,94393.0,0.5514444]
[1745904200701,0.2449424,94394.0,94393.0,0.5514444]
[1745904200902,0.0553,94394.0,94393.0,0.5514444]
[1745904201908,0.2459424,94394.0,94393.0,0.5514444]
[1745904202105,0.0553,94394.0,94393.0,0.5514444]
[1745904202997,0.2459424,94394.0,94393.0,0.5514444]
[1745904203398,0.0553,94394.0,94393.0,0.5514444]
[1745904203603,0.2459424,94394.0,94393.0,0.5514444]
[1745904203803,0.0553,94394.0,94393.0,0.5514444]
[1745904204506,0.001,94394.0,94393.0,0.5514444]
[1745904204898,0.06584,94411.0,94393.0,0.4808]
[1745904205103,0.10982396,94411.0,94410.0,0.1906101]
[1745904205312,0.30043266,94411.0,94410.0,0.1906101]
[1745904206007,0.30043266,94411.0,94410.0,0.19040852]
[1745904206202,0.30043266,94411.0,94409.0,0.0533]
[1745904206203,0.1906101,94410.0,94409.0,0.0533]
[1745904206408,0.2529101,94410.0,94409.0,0.0533]
[1745904207415,0.1906121,94409.0,94408.0,0.3608]
[1745904207607,0.1906262,94402.0,94401.0,0.3608]
[1745904207807,0.1906262,94402.0,94401.0,0.5514282]
[1745904208014,0.3002262,94402.0,94401.0,0.6031282]
[1745904208714,0.2454262,94402.0,94401.0,0.6031282]
[1745904208909,0.0548,94402.0,94401.0,0.6031282]
[1745904209214,0.0548,94402.0,94401.0,0.6554282]
[1745904209609,0.0568,94402.0,94401.0,0.6554282]
[1745904210202,0.002,94402.0,94401.0,0.6554282]
[1745904210906,0.1946262,94402.0,94401.0,0.6554282]
[1745904212511,0.004,94402.0,94401.0,0.6554282]
[1745904214015,0.1946262,94402.0,94401.0,0.4648]
[1745904214211,0.1946262,94402.0,94401.0,0.4125]
[1745904214611,0.1906424,94394.0,94386.0,0.16176184]
[1745904214811,0.1906424,94394.0,94387.0,0.0515]
[1745904215006,0.1906424,94394.0,94390.0,0.0476623]
[1745904215208,0.1906484,94391.0,94390.0,0.4084623]
[1745904216903,0.1906484,94391.0,94390.0,0.5991073]
[1745904218320,0.1906484,94391.0,94390.0,0.551445]
[1745904220716,0.1906484,94391.0,94390.0,0.3608]
[1745904221920,0.1906646,94383.0,94382.0,0.4154]
[1745904222520,0.0476611,94393.0,94389.0,0.1906464]
[1745904222712,0.190658,94390.0,94389.0,0.1906464]
[1745904222916,0.1906466,94392.0,94391.0,0.1906464]
[1745904223213,0.1906459,94395.0,94394.0,0.1906403]
[1745904223416,0.1906459,94395.0,94394.0,0.5514403]
[1745904223915,0.2424459,94395.0,94394.0,0.5514403]
[1745904224324,0.2434459,94395.0,94394.0,0.5514403]
[1745904225522,0.2444459,94395.0,94394.0,0.5514403]
[1745904225824,0.002,94395.0,94394.0,0.5514403]
[1745904227315,0.002,94395.0,94394.0,0.56709466]
[1745904227918,0.002,94395.0,94394.0,0.62259466]
[1745904228318,0.1926403,94395.0,94394.0,0.62259466]
[1745904228514,0.1926403,94395.0,94394.0,0.62267463]
[1745904230214,0.1926403,94395.0,94394.0,0.6069403]
[1745904231319,0.1926403,94395.0,94394.0,0.62254135]
[1745904232335,0.1926403,94395.0,94394.0,0.6069403]
[1745904236934,0.1926403,94395.0,94394.0,0.6627403]
[1745904240333,0.002,94395.0,94394.0,0.6627403]
[1745904243033,0.23459206,94411.0,94410.0,0.1906101]
[1745904243335,0.23459206,94411.0,94410.0,0.5514101]
[1745904243942,0.23459206,94411.0,94410.0,0.6568101]
[1745904244125,0.23859206,94411.0,94410.0,0.6568101]
[1745904244931,0.24259206,94411.0,94410.0,0.6568101]
[1745904251940,0.1906242,94403.0,94402.0,0.3608]
[1745904252138,0.2564242,94403.0,94402.0,0.3608]
[1745904252333,0.3623522,94403.0,94402.0,0.3608]
[1745904252730,0.3662522,94403.0,94402.0,0.3608]
[1745904253134,0.4862522,94403.0,94402.0,0.3608]
[1745904253839,0.4882522,94403.0,94402.0,0.3608]
[1745904254639,0.4902522,94403.0,94402.0,0.3608]
[1745904255338,0.3702522,94403.0,94402.0,0.3608]
[1745904257247,0.1906605,94385.0,94377.0,0.047669]
[1745904257432,0.1906605,94385.0,94375.0,0.3608]
[1745904257433,0.1906605,94385.0,94383.0,0.0538]
[1745904258241,0.1906605,94385.0,94384.0,0.6022626]
[1745904258543,0.1906605,94385.0,94384.0,0.4136]
[1745904258840,0.1906605,94385.0,94384.0,0.6552626]
[1745904259029,0.1906574,94387.0,94386.0,0.1906565]
[1745904260430,0.1906574,94387.0,94386.0,0.1916565]
[1745904261242,0.1906574,94387.0,94386.0,0.1926565]
[1745904265142,0.1906538,94389.0,94388.0,0.2383136]
[1745904265946,0.1906416,94396.0,94395.0,0.2382961]
[1745904266137,0.1906416,94396.0,94395.0,0.5990961]
[1745904266338,0.1906416,94396.0,94395.0,0.5514363]
[1745904267143,0.1916416,94396.0,94395.0,0.5514363]
[1745904267443,0.1916416,94396.0,94395.0,0.56710261]
[1745904268734,0.1926416,94396.0,94395.0,0.37646631]
[1745904269136,0.2430416,94396.0,94395.0,0.37646631]
[1745904269338,0.2430416,94396.0,94395.0,0.01564947]
[1745904269542,0.1906585,94386.0,94385.0,0.0535]
[1745904270244,0.1906605,94385.0,94384.0,0.3608]
[1745904270545,0.2449605,94385.0,94384.0,0.3608]
[1745904270743,0.1906605,94385.0,94384.0,0.3608]
[1745904271541,0.1906605,94385.0,94384.0,0.56912533]
[1745904272150,0.1906605,94385.0,94384.0,0.57012533]
[1745904274738,0.1906571,94387.0,94386.0,0.2383187]
[1745904274948,0.1906571,94387.0,94386.0,0.20631723]
[1745904275148,0.1906424,94396.0,94395.0,0.1906383]
[1745904275544,0.0476584,94399.0,94395.0,0.1906383]
[1745904275545,0.1906356,94398.0,94397.0,0.1906343]
[1745904275745,0.1906356,94398.0,94397.0,0.20628287]
[1745904276842,0.1916356,94398.0,94397.0,0.25548287]
[1745904278041,0.001,94398.0,94397.0,0.25548287]
[1745904278246,0.002,94398.0,94397.0,0.30848287]
[1745904278751,0.002,94398.0,94397.0,0.2928343]
[1745904279553,0.002,94398.0,94397.0,0.30844935]
[1745904280155,0.002,94398.0,94397.0,0.66924935]
[1745904282356,0.01275,94405.0,94404.0,0.1906222]
[1745904282552,0.0088495,94412.0,94408.0,0.2859141]
[1745904282758,0.1906121,94410.0,94409.0,0.35910942]
[1745904282961,0.1906121,94410.0,94409.0,0.77110942]
[1745904284360,0.004,94410.0,94409.0,0.77107343]
[1745904284551,0.007,94410.0,94409.0,0.77107343]
[1745904287959,0.1976101,94410.0,94409.0,0.77107343]
[1745904288156,0.1976101,94410.0,94409.0,0.77108103]
[1745904288350,0.007,94410.0,94409.0,0.77108103]
[1745904288550,0.1976101,94410.0,94409.0,0.77108103]
[1745904289954,0.007,94410.0,94409.0,0.77108103]
[1745904290459,0.007,94410.0,94409.0,0.77106967]
[1745904292458,0.1976101,94410.0,94409.0,0.77106967]
[1745904292656,0.007,94410.0,94409.0,0.77106967]
[1745904293256,0.1976101,94410.0,94409.0,0.77106967]
[1745904293461,0.007,94410.0,94409.0,0.77106967]
[1745904294360,0.1976101,94410.0,94409.0,0.77106967]
[1745904296259,0.1956101,94410.0,94409.0,0.77106967]
[1745904297162,0.1946101,94410.0,94409.0,0.77106967]
[1745904297966,0.1946101,94410.0,94409.0,0.77110631]
[1745904298769,0.004,94410.0,94409.0,0.77110631]
[1745904299967,0.1946101,94410.0,94409.0,0.77111162]
[1745904301563,0.1946101,94410.0,94409.0,0.72345902]
[1745904301765,0.1946101,94410.0,94409.0,0.7077101]
[1745904302655,0.1946101,94410.0,94409.0,0.72328902]
[1745904303260,0.004,94410.0,94409.0,0.72328902]
[1745904305565,0.1946101,94410.0,94409.0,0.72328902]
[1745904305769,0.004,94410.0,94409.0,0.72328902]
[1745904308676,0.004,94410.0,94409.0,0.72357554]
[1745904310578,0.004,94410.0,94409.0,0.72352144]
[1745904313268,0.1946101,94410.0,94409.0,0.72352144]
[1745904315078,0.004,94410.0,94409.0,0.72352144]
[1745904317471,0.1905878,94423.0,94422.0,0.2382228]
[1745904317677,0.1905878,94423.0,94422.0,0.61483414]
[1745904317871,0.1905811,94425.0,94424.0,0.1905798]
[1745904318072,0.1905811,94425.0,94424.0,0.20639114]
[1745904319579,0.3026089,94426.0,94425.0,0.1905798]
[1745904319785,0.1120311,94426.0,94425.0,0.20639114]
[1745904319971,0.08034271,94426.0,94425.0,0.56719114]
[1745904320280,0.08034271,94426.0,94425.0,0.56728611]
[1745904320674,0.08034271,94426.0,94425.0,0.5513798]
[1745904320881,0.08434271,94426.0,94425.0,0.5513798]
[1745904321180,0.006,94426.0,94425.0,0.5513798]
[1745904321782,0.00329994,94431.0,94430.0,0.1905697]
[1745904321972,0.2695627,94434.0,94433.0,0.1905636]
[1745904322178,0.25085035,94434.0,94433.0,0.5513636]
[1745904322780,0.14985035,94434.0,94433.0,0.5513636]
[1745904323482,0.15085035,94434.0,94433.0,0.5513636]
[1745904324075,0.15185035,94434.0,94433.0,0.5513636]
[1745904324874,0.03498765,94434.0,94433.0,0.5513636]
[1745904326380,0.22554925,94434.0,94433.0,0.5513636]
[1745904326579,0.03498765,94434.0,94433.0,0.5513636]
[1745904328985,0.22554925,94434.0,94433.0,0.5513636]
[1745904329190,0.22554925,94434.0,94433.0,0.3608]
[1745904329779,0.23244925,94434.0,94433.0,0.3608]
[1745904331780,0.1906,94415.0,94414.0,0.3608]
[1745904331989,0.1906,94415.0,94414.0,0.37647904]
[1745904332188,0.3106,94415.0,94414.0,0.37647904]
[1745904332390,0.3106,94415.0,94414.0,0.56708104]
[1745904332688,0.12,94415.0,94414.0,0.56708104]
[1745904332888,0.3106,94415.0,94414.0,0.57108104]
[1745904333091,0.1906,94415.0,94414.0,0.57108104]
[1745904333586,0.1906,94415.0,94414.0,0.38047904]
[1745904333780,0.1906,94415.0,94414.0,0.57408104]
[1745904333986,0.1906,94415.0,94414.0,0.38347904]
[1745904334825,0.1906,94415.0,94414.0,0.3678]
[1745904335789,0.1906,94415.0,94414.0,0.4253]
[1745904337097,0.3106,94415.0,94414.0,0.007]
[1745904337393,0.3202,94415.0,94414.0,0.007]
[1745904337989,0.3202,94415.0,94414.0,0.006]
[1745904338404,0.3202,94415.0,94414.0,0.005]
[1745904338699,0.1906141,94408.0,94407.0,0.0531]
[1745904339094,0.2563341,94408.0,94407.0,0.0531]
[1745904339591,0.1906302,94400.0,94399.0,0.0552]
[1745904340902,0.1906302,94400.0,94399.0,0.0592]
[1745904341599,0.1906302,94400.0,94399.0,0.0612]
[1745904344497,0.1906302,94400.0,94399.0,0.0602]
[1745904345305,0.1906302,94400.0,94399.0,0.0592]
[1745904347298,0.2001302,94400.0,94399.0,0.0572]
[1745904347598,0.1906302,94400.0,94399.0,0.0582]
[1745904376816,0.06576,94402.0,94401.0,0.1906282]
[1745904377018,0.0476446,94426.0,94401.0,0.0476566]
[1745904377214,0.03612,94408.0,94407.0,0.1906161]
[1745904377406,0.1905899,94422.0,94421.0,0.1905868]
[1745904377610,0.2382364,94422.0,94421.0,0.5513868]
[1745904377806,0.2382364,94422.0,94421.0,0.3608]
[1745904378006,0.2382364,94422.0,94421.0,0.5513878]
[1745904378610,0.2412364,94422.0,94421.0,0.3608]
[1745904380010,0.2442364,94422.0,94421.0,0.3608]
[1745904380317,0.2412364,94422.0,94421.0,0.4161]
[1745904380516,0.2412364,94422.0,94421.0,0.4719]
[1745904381122,0.2382364,94422.0,94421.0,0.4729]
[1745904382326,0.2382364,94422.0,94421.0,0.6634878]
[1745904383221,0.2382364,94422.0,94421.0,0.4729]
[1745904385120,0.2382364,94422.0,94421.0,0.6634878]
[1745904385319,0.1905834,94424.0,94423.0,0.1905814]
[1745904385520,0.1905858,94422.0,94421.0,0.6096867]
[1745904386424,0.1905826,94424.0,94423.0,0.2382253]
[1745904386620,0.00945,94427.0,94424.0,0.0476454]
[1745904386920,0.00945,94427.0,94426.0,0.1905778]
[1745904387220,0.1905746,94428.0,94427.0,0.1905757]
[1745904389225,0.0571018,94432.0,94427.0,0.1905757]
[1745904389226,0.1905697,94431.0,94430.0,0.1905677]
[1745904389431,0.1905697,94431.0,94430.0,0.5513677]
[1745904390125,0.1905645,94433.0,94432.0,0.1905636]
[1745904390428,0.1905639,94434.0,94433.0,0.1905636]
[1745904392122,0.1915639,94434.0,94433.0,0.1905636]
[1745904393030,0.1925639,94434.0,94433.0,0.1905636]
[1745904393524,0.24541996,94434.0,94433.0,0.1905636]
[1745904397923,0.1905677,94432.0,94431.0,0.190567]
[1745904398228,0.0476413,94433.0,94430.0,0.5513697]
[1745904398229,0.1905677,94431.0,94430.0,0.5513697]
[1745904398819,0.1925631,94434.0,94433.0,0.1905636]
[1745904399022,0.1915631,94434.0,94433.0,0.1905636]
[1745904399421,0.24486329,94434.0,94433.0,0.1905636]
[1745904399627,0.24386329,94434.0,94433.0,0.1905636]
[1745904400033,0.1905631,94434.0,94433.0,0.1905636]
[1745904400232,0.1915631,94434.0,94433.0,0.1905636]
[1745904400533,0.1925631,94434.0,94433.0,0.1905636]
[1745904401229,0.002,94434.0,94433.0,0.1905636]
[1745904404431,0.1925616,94434.0,94433.0,0.1905636]
[1745904404624,0.002,94434.0,94433.0,0.29645959]
[1745904404830,0.1925616,94434.0,94433.0,0.1905636]
[1745904405130,0.1905636,94433.0,94432.0,0.0509]
[1745904405726,0.1905636,94433.0,94432.0,0.2414636]
[1745904405936,0.1905636,94433.0,94432.0,0.0509]
[1745904406229,0.2285636,94433.0,94432.0,0.0509]
[1745904406432,0.2509636,94433.0,94432.0,0.0509]
[1745904406629,0.1905677,94431.0,94430.0,0.3608]
[1745904406831,0.1905838,94423.0,94422.0,0.0521]
[1745904407231,0.190606,94412.0,94411.0,0.3608]
[1745904408725,0.190606,94412.0,94411.0,0.4701]
[1745904409423,0.190606,94412.0,94411.0,0.4741]
[1745904410133,0.190606,94412.0,94411.0,0.667708]
[1745904410333,0.190606,94412.0,94411.0,0.306908]
[1745904411232,0.24282316,94412.0,94411.0,0.1163]
[1745904411433,0.190606,94412.0,94411.0,0.306908]
[1745904411827,0.190606,94412.0,94411.0,0.1163]
[1745904413433,0.228506,94412.0,94411.0,0.1123]
[1745904413632,0.228506,94412.0,94411.0,0.1163]
[1745904413838,0.28160611,94412.0,94411.0,0.1163]
[1745904414135,0.28160611,94412.0,94411.0,0.1153]
[1745904414725,0.24370611,94412.0,94411.0,0.1153]
[1745904415723,0.24370611,94412.0,94411.0,0.168]
[1745904416432,0.24370611,94412.0,94411.0,0.357608]
[1745904416636,0.1905971,94417.0,94416.0,0.1905939]
[1745904417934,0.1906,94415.0,94414.0,0.5514016]
[1745904418943,0.1906,94415.0,94414.0,0.5544016]
[1745904419441,0.1906,94415.0,94414.0,0.5514016]
[1745904419629,0.1906,94415.0,94414.0,0.5544016]
[1745904420342,0.1906,94415.0,94414.0,0.5574016]
[1745904421239,0.1906,94415.0,94414.0,0.1966016]
[1745904421636,0.1906,94415.0,94414.0,0.006]
[1745904427151,0.2326,94415.0,94414.0,0.006]
[1745904428151,0.2326,94415.0,94414.0,0.0607]
[1745904428339,0.2571,94415.0,94414.0,0.0607]
[1745904428845,0.2571,94415.0,94414.0,0.0577]
[1745904429042,0.2571,94415.0,94414.0,0.0607]
[1745904429243,0.3771,94415.0,94414.0,0.0607]
[1745904429443,0.3771,94415.0,94413.0,0.3608]
[1745904429444,0.190602,94414.0,94413.0,0.3608]
[1745904429644,0.1906181,94406.0,94405.0,0.0547]
[1745904430839,0.1906343,94398.0,94397.0,0.00158903]
[1745904432351,0.1906343,94398.0,94397.0,0.00958903]
[1745904433241,0.1906343,94398.0,94397.0,0.20022533]
[1745904433441,0.1906343,94398.0,94397.0,0.00958903]
[1745904434158,0.1906343,94398.0,94397.0,0.25302533]
[1745904437149,0.1906343,94398.0,94397.0,0.06238903]
[1745904437541,0.1906343,94398.0,94397.0,0.11568903]
[1745904439345,0.00946,94402.0,94401.0,0.1906282]
[1745904439550,0.047652,94411.0,94401.0,0.5514282]
[1745904439750,0.1906213,94405.0,94404.0,0.2382715]
[1745904440539,0.1906213,94405.0,94404.0,0.1906162]
[1745904440945,0.1906213,94405.0,94404.0,0.1936162]
[1745904441249,0.1906213,94405.0,94404.0,0.3136162]
[1745904441640,0.1906213,94405.0,94404.0,0.4237162]
[1745904442245,0.1906213,94405.0,94404.0,0.4257162]
[1745904455759,0.1906213,94405.0,94404.0,0.2351]
[1745904457267,0.1906213,94405.0,94404.0,0.1151]
[1745904467163,0.1906213,94405.0,94404.0,0.2351]
[1745904472172,0.1906213,94405.0,94404.0,0.1151]
[1745904478178,0.1906213,94405.0,94404.0,0.4759]
[1745904480576,0.1906213,94405.0,94404.0,0.49166759]
[1745904483578,0.1906213,94405.0,94404.0,0.4759]
[1745904491581,0.057113,94409.0,94406.0,0.1906141]
[1745904491582,0.00946,94409.0,94406.0,0.1906141]
[1745904491878,0.1906049,94413.0,94412.0,0.2382531]
[1745904492070,0.0476514,94413.0,94408.0,0.0476535]
[1745904492269,0.2382554,94413.0,94412.0,0.12]
[1745904492471,0.2477254,94413.0,94412.0,0.12]
[1745904492666,0.2477254,94413.0,94412.0,0.2714]
[1745904492872,0.2382554,94413.0,94412.0,0.2714]
[1745904493473,0.2382554,94413.0,94412.0,0.464006]
[1745904494767,0.190604,94413.0,94412.0,0.464006]
[1745904495277,0.190604,94413.0,94412.0,0.467006]
[1745904495478,0.1906002,94415.0,94414.0,0.1906]
[1745904495781,0.1906002,94415.0,94414.0,0.5514]
[1745904495975,0.1906002,94415.0,94414.0,0.3608]
[1745904496169,0.1906002,94415.0,94414.0,0.4808]
[1745904496782,0.1906002,94415.0,94414.0,0.4828]
[1745904497576,0.1906002,94415.0,94414.0,0.4848]
[1745904497968,0.1906002,94415.0,94414.0,0.675402]
[1745904498986,0.1906002,94415.0,94414.0,0.673402]
[1745904499285,0.1906002,94415.0,94414.0,0.675402]
[1745904501491,0.1906002,94415.0,94414.0,0.673402]
[1745904501694,0.1906002,94415.0,94414.0,0.675402]
[1745904502093,0.1906002,94415.0,94414.0,0.4848]
[1745904502284,0.1906002,94415.0,94414.0,0.4828]
[1745904502479,0.1906002,94415.0,94414.0,0.4848]
[1745904502684,0.2411002,94415.0,94414.0,0.4848]
[1745904503285,0.2411002,94415.0,94414.0,0.3648]
[1745904503690,0.2411002,94415.0,94414.0,0.004]
[1745904504493,0.2411002,94415.0,94414.0,0.002]
[1745904504683,0.190604,94413.0,94412.0,0.0524]
[1745904506391,0.190604,94413.0,94412.0,0.0544]
[1745904506590,0.190604,94413.0,94412.0,0.0564]
[1745904511693,0.190604,94413.0,94412.0,0.07200597]
[1745904512697,0.190604,94413.0,94412.0,0.0564]
[1745904513700,0.190604,94413.0,94412.0,0.0722654]
[1745904514093,0.190604,94413.0,94412.0,0.3808714]
[1745904514295,0.190604,94413.0,94412.0,0.3828714]
[1745904515203,0.190604,94413.0,94412.0,0.3808714]
[1745904515398,0.190604,94413.0,94412.0,0.2416654]
[1745904516499,0.190604,94413.0,94412.0,0.2910654]
[1745904516997,0.190604,94413.0,94412.0,0.2890654]
[1745904517298,0.190604,94413.0,94412.0,0.2911639]
[1745904518194,0.190604,94413.0,94412.0,0.1711639]
[1745904520891,0.190604,94413.0,94412.0,0.1552]
[1745904521092,0.190604,94413.0,94412.0,0.17117474]
[1745904523001,0.190604,94413.0,94412.0,0.17127118]
[1745904527504,0.190604,94413.0,94412.0,0.16927118]
[1745904527705,0.190604,94413.0,94412.0,0.17127118]
[1745904528596,0.190604,94413.0,94412.0,0.17129064]
[1745904529105,0.256244,94413.0,94412.0,0.17129064]
[1745904530297,0.256244,94413.0,94412.0,0.16929064]
[1745904530508,0.256244,94413.0,94412.0,0.17129064]
[1745904532502,0.256244,94413.0,94412.0,0.16929064]
[1745904532909,0.190604,94413.0,94412.0,0.17129064]
[1745904533102,0.190604,94413.0,94412.0,0.16929064]
[1745904533409,0.190604,94413.0,94412.0,0.17129064]
[1745904533605,0.190604,94413.0,94412.0,0.16929064]
[1745904533905,0.190604,94413.0,94412.0,0.17129064]
[1745904534312,0.190604,94413.0,94412.0,0.17029064]
[1745904535013,0.190604,94413.0,94412.0,0.16929064]
[1745904535220,0.190604,94413.0,94412.0,0.17029064]
[1745904537813,0.237904,94413.0,94412.0,0.17029064]
[1745904538014,0.237904,94413.0,94412.0,0.17075399]
[1745904540008,0.237904,94413.0,94412.0,0.17075401]
[1745904541312,0.237904,94413.0,94412.0,0.170754]
[1745904543620,0.190604,94413.0,94412.0,0.170754]
[1745904543909,0.190604,94413.0,94412.0,0.17075395]
[1745904544308,0.240604,94413.0,94412.0,0.17075395]
[1745904547118,0.190604,94413.0,94412.0,0.17075395]
[1745904548811,0.1906014,94415.0,94414.0,0.1906]
[1745904549014,0.1906014,94415.0,94414.0,0.20710619]
[1745904549315,0.1906014,94415.0,94414.0,0.32710619]
[1745904550021,0.1906014,94415.0,94414.0,0.13750619]
[1745904550209,0.1906014,94415.0,94414.0,0.13850619]
[1745904550606,0.1906014,94415.0,94414.0,0.13834566]
[1745904551727,0.1906014,94415.0,94414.0,0.14034566]
[1745904552214,0.1906014,94415.0,94414.0,0.33094766]
[1745904552619,0.1906014,94415.0,94414.0,0.69174766]
[1745904552807,0.1906014,94415.0,94414.0,0.50114566]
[1745904556218,0.1906014,94415.0,94414.0,0.50128881]
[1745904564226,0.1906014,94415.0,94414.0,0.38086565]
[1745904565018,0.1906014,94415.0,94414.0,0.02006565]
[1745904567328,0.0476565,94403.0,94397.0,0.00158903]
[1745904567520,0.1906343,94398.0,94397.0,0.00158903]
[1745904568428,0.1906343,94398.0,94397.0,0.00658903]
[1745904569614,0.06564,94400.0,94399.0,0.1906323]
[1745904569819,0.1906302,94400.0,94399.0,0.1906323]
[1745904570216,0.1906302,94400.0,94399.0,0.3106323]
[1745904571514,0.1906302,94400.0,94399.0,0.12]
[1745904571714,0.1906302,94400.0,94399.0,0.122]
[1745904571918,0.1906302,94400.0,94399.0,0.3146323]
[1745904572517,0.1906302,94400.0,94399.0,0.124]
[1745904572913,0.1906302,94400.0,94399.0,0.2213]
[1745904573812,0.1906302,94400.0,94399.0,0.5821]
[1745904576923,0.1906302,94400.0,94399.0,0.7727323]
[1745904582129,0.1906302,94400.0,94399.0,0.5821]
[1745904582529,0.1906302,94400.0,94399.0,0.7727323]
[1745904588528,0.1906302,94400.0,94399.0,0.5821]
[1745904588826,0.1906302,94400.0,94399.0,0.5337]
[1745904589233,0.2420302,94400.0,94399.0,0.4137]
[1745904592131,0.1906302,94400.0,94399.0,0.4137]
[1745904593420,0.2398302,94400.0,94399.0,0.4137]
[1745904606636,0.2398302,94400.0,94399.0,0.0529]
[1745904610842,0.1906545,94388.0,94371.0,0.047672]
[1745904611042,0.1906545,94388.0,94386.0,0.0497]
[1745904612036,0.1906545,94388.0,94387.0,0.00658924]
[1745904612544,0.5514545,94388.0,94387.0,0.00658924]
[1745904612745,0.7048025,94388.0,94387.0,0.00658924]
[1745904613045,0.7048025,94388.0,94387.0,0.01158924]
[1745904613340,0.7048025,94388.0,94387.0,0.00958924]
[1745904613547,0.7048025,94388.0,94387.0,0.00458924]
[1745904613746,0.7048025,94388.0,94387.0,0.00658924]
[1745904614139,0.8248025,94388.0,94387.0,0.00558924]
[1745904614450,0.1906888,94371.0,94370.0,0.16187254]
[1745904614646,0.190701,94365.0,94362.0,0.00158961]
[1745904614840,0.551501,94365.0,94362.0,0.00158961]
[1745904615145,0.551501,94365.0,94363.0,0.0474]
[1745904615345,0.551501,94365.0,94363.0,0.0948]
[1745904615346,0.190701,94365.0,94363.0,0.0948]
[1745904615544,0.4084702,94375.0,94364.0,0.57662851]
[1745904615737,0.3608,94375.0,94365.0,0.0499]
[1745904615938,0.0476667,94382.0,94374.0,0.3608]
[1745904616138,0.872459,94398.0,94375.0,0.1462]
[1745904616139,0.1906787,94376.0,94375.0,0.1462]
[1745904616338,0.0476682,94379.0,94376.0,0.190678]
[1745904616545,0.1906787,94376.0,94375.0,0.1462]
[1745904617233,0.1906787,94376.0,94375.0,0.2662]
[1745904619135,0.1906787,94376.0,94375.0,0.2672]
[1745904619340,0.1906787,94376.0,94375.0,0.2682]
[1745904620746,0.1906787,94376.0,94375.0,0.2672]
[1745904622745,0.1906787,94376.0,94375.0,0.2662]
[1745904622938,0.1906787,94376.0,94375.0,0.2672]
[1745904625237,0.1906787,94376.0,94375.0,0.1472]
[1745904632049,0.1906787,94376.0,94375.0,0.508]
[1745904635056,0.06564,94380.0,94379.0,0.1906727]
[1745904635244,0.1906706,94380.0,94379.0,0.1906727]
[1745904635446,0.2657589,94392.0,94391.0,0.1906484]
[1745904635647,0.06564,94392.0,94391.0,0.5514484]
[1745904635848,0.2562864,94392.0,94391.0,0.5514484]
[1745904636557,0.2592864,94392.0,94391.0,0.5514484]
[1745904636756,0.2592864,94392.0,94391.0,0.3608]
[1745904637148,0.2592864,94392.0,94391.0,0.4808]
[1745904637343,0.2592864,94392.0,94391.0,0.5809]
[1745904638558,0.2592864,94392.0,94391.0,0.5829]
[1745904639161,0.28354079,94392.0,94391.0,0.5829]
[1745904639462,0.28354079,94392.0,94391.0,0.5859]
[1745904639759,0.28354079,94392.0,94391.0,0.5849]
[1745904640460,0.28354079,94392.0,94391.0,0.5839]